[Event "4th Tata Steel India Blitz Women 2022"]
[Site "Kolkota"]
[Date "2022.12.03"]
[Round "7.3"]
[White "Kiolbasa, Oliwia"]
[Black "Savitha Shri B"]
[Result "0-1"]
[ECO "B48"]
[WhiteElo "2406"]
[BlackElo "2411"]
[Annotator "TA"]
[PlyCount "66"]
[EventDate "2022.11.29"]
[EventType "tourn"]
[EventCountry "IND"]
[SourceTitle "playchess.com"]
[Source "ChessBase"]
[SourceQuality "1"]
[TimeControl "180+2"]

{[%evp 14,66,29,26,33,27,37,35,33,-2,-10,-6,-8,-58,-55,-71,-47,-44,-41,-327,-338,-450,-448,-449,-458,-445,-441,-437,-429,-589,-570,-1415,-570,-519,-452,-478,-446,-616,-616,-1792,-1752,-2361,-2312,-5443,-5397,-29985,-29982,-29983,-29984,-29985,-29986,-29996,-29995,-29997,-29983]} 1. e4 {[%emt 0:00:01]} c5 {[%emt 0:00:01]} 2. Nf3 {[%emt 0:00:01]} e6 {[%emt 0:00:01]} 3. d4 {[%emt 0:00:01]} cxd4 {[%emt 0:00:01]} 4. Nxd4 {[%emt 0:00:01]} Nc6 {[%emt 0:00:04]} 5. Nc3 {[%emt 0:00:01]} a6 {[%emt 0:00:01]} 6. Be3 {[%emt 0:00:18]} Qc7 {[%emt 0:00:02]} 7. a3 {[%emt 0:00:01]} Nf6 {[%emt 0:00:05]} 8. f4 {[%emt 0:00:02] is cutting edge theory.} d5 {[%emt 0:00:12] B48: Sicilian: Taimanov: 5 Nc3 Qc7 6 Be3 a6 without Be2.} 9. e5 {[%emt 0:00:12]} Ne4 {[%emt 0:00:02]} 10. Nxe4 {[%emt 0:00:18]} dxe4 {[%emt 0:00:01] [#] White is slightly better.} 11. Qg4 $146 {[%emt 0:00:47]} (11. g3 {is interesting.} Bc5 12. Nb5 axb5 13. Bxc5 Nxe5 14. Bd6) ({Predecessor:} 11. Nxc6 Qxc6 12. Qd2 Be7 13. O-O-O O-O 14. Be2 b5 15. g4 a5 16. Kb1 b4 17. a4 Qxa4 {0-1 (38) Golubev,M (2461)-Svane,F (2438) Chess.com INT 2021}) 11... Nxd4 {[%emt 0:00:26]} 12. Bxd4 {[%emt 0:00:01]} Qxc2 {[%emt 0:00:14]} 13. Rd1 {[%emt 0:00:13]} ({Better is} 13. Qe2 $11 Qxe2+ 14. Kxe2 (14. Bxe2 Be7 $15)) 13... Bd7 $15 {[%emt 0:00:27] ...Ba4 is the strong threat.} 14. Be2 {[%emt 0:00:24]} Bc6 {[%emt 0:00:44] Threatens to win with ...0-0-0.} 15. Rd2 {[%emt 0:00:09]} Qa4 {[%emt 0:00:08] And now ...0-0-0 would win.} 16. O-O $2 {[%emt 0:00:28][%mdl 8192]} (16. Bd1 $15 Qb5 17. Be2) 16... O-O-O $19 {[%emt 0:00:02]} 17. Rfd1 {[%emt 0:00:14] [#]} Rxd4 {[%emt 0:00:15][%mdl 512]} 18. Rxd4 {[%emt 0:00:01]} Bc5 {[%emt 0:00:01][%mdl 64] Pin} 19. b4 Rd8 {[%emt 0:00:17]} (19... Bxd4+ $2 {loses.} 20. Rxd4 Qxa3 21. Qxg7 Qe3+ 22. Kf1 Qxf4+ 23. Ke1 $19) 20. bxc5 {[%emt 0:00:07]} Rxd4 {[%emt 0:00:02]} 21. Rf1 {[%emt 0:00:13]} Qxa3 {[%emt 0:00:05]} 22. Qxg7 {[%emt 0:00:05]} Qxc5 {[%emt 0:00:01]} (22... Qe3+ $142 23. Rf2 Bb5 24. Bxb5 axb5) 23. Kh1 {[%emt 0:00:01]} Rd7 {[%emt 0:00:11]} 24. Qxh7 {[%emt 0:00:06]} Qe3 {[%emt 0:00:02]} 25. Qh5 {[%emt 0:00:03]} Rd2 {[%emt 0:00:04] Inhibits f5.} 26. Bg4 {[%emt 0:00:03]} Qd3 {[%emt 0:00:06][%cal Rd3f1]} 27. Rg1 {[%emt 0:00:01]} e3 {[%emt 0:00:05][%cal Od2g2,Be4e3,Be3e2][%mdl 32] ( -> ...Rxg2!)} 28. Bf3 {[%emt 0:00:02]} e2 {[%emt 0:00:03]} 29. Bxc6 {[%emt 0:00:02]} bxc6 {[%emt 0:00:03] Black mates.} 30. Qxf7 {[%emt 0:00:01]} Rd1 {[%emt 0:00:04] Active counter play!} 31. Qf8+ {[%emt 0:00:03]} Qd8 {[%emt 0:00:03]} 32. Qb4 {[%emt 0:00:02]} Rxg1+ {[%emt 0:00:02]} 33. Kxg1 {[%emt 0:00:02]} Qd1+ {[%emt 0:00:01] Black took control after the opening.   Weighted Error Value: White=1.37/Black=0.22 (precise)} 0-1

[Event "4th Tata Steel India Blitz Women 2022"]
[Site "Kolkota"]
[Date "2022.12.03"]
[Round "7.4"]
[White "Ushenina, Anna"]
[Black "Muzychuk, Mariya"]
[Result "0-1"]
[ECO "D46"]
[WhiteElo "2454"]
[BlackElo "2528"]
[Annotator "TA"]
[PlyCount "108"]
[EventDate "2022.11.29"]
[EventType "tourn"]
[EventCountry "IND"]
[SourceTitle "playchess.com"]
[Source "ChessBase"]
[SourceQuality "1"]
[TimeControl "180+2"]

{[%evp 24,108,31,20,20,20,20,-49,22,22,18,16,20,20,20,17,42,23,40,61,76,78,70,67,66,74,88,89,85,68,119,47,62,29,31,31,29,0,0,0,0,-622,-18,-18,-18,-48,-51,-45,-48,-48,-56,-49,0,0,0,0,0,0,0,0,0,0,0,0,0,0,0,0,0,0,0,-29978,-8,-29980,-29981,-29980,-29982,-29982,-29983,-29984,-29985,-29985,-29986,-29986,-29987,-29987,-29988]} 1. d4 {[%emt 0:00:02]} d5 {[%emt 0:00:00]} 2. c4 {[%emt 0:00:02]} c6 3. Nf3 {[%emt 0:00:03]} Nf6 {[%emt 0:00:01]} 4. Nc3 {[%emt 0:00:01]} e6 {[%emt 0:00:01][%cal Be7e6,Be6e5][%mdl 32]} 5. e3 {[%emt 0:00:02]} Nbd7 {[%emt 0:00:01]} 6. Qc2 {[%emt 0:00:01]} Bd6 {[%emt 0:00:01]} 7. Bd3 {[%emt 0:00:01]} O-O {[%emt 0:00:02]} 8. O-O {[%emt 0:00:03]} e5 {[%emt 0:00:04]} 9. cxd5 {[%emt 0:00:03]} cxd5 {[%emt 0:00:01]} 10. e4 {[%emt 0:00:02]} exd4 {[%emt 0:00:03]} 11. Nxd5 {[%emt 0:00:01]} Nxd5 {[%emt 0:00:04]} 12. exd5 {[%emt 0:00:02]} h6 {[%emt 0:00:15]} 13. Nxd4 {[%emt 0:00:05] 13.b3 is vanishing.} Qh4 {[%emt 0:00:04][%csl Gd6,LRd4,LRh2][%cal Rh4h2] Inhibits h3. D46: Semi-Slav: 5 e3 Nbd7 6 Bd3, Black avoids the Meran.} 14. Nf3 {[%emt 0:00:02]} (14. Bh7+ {feels hotter.} Kh8 15. Nf3 Qh5 16. Qf5) 14... Qh5 {[%emt 0:00:00]} 15. Bh7+ {[%emt 0:00:03]} Kh8 {[%emt 0:00:01] Black is slightly better.} 16. Qf5 {[%emt 0:00:02]} Qxf5 {[%emt 0:00:03]} 17. Bxf5 {[%emt 0:00:02]} Nf6 {[%emt 0:00:01][%csl LRd5,LRf5]} 18. Bxc8 {[%emt 0:00:10]} Rfxc8 {[%emt 0:00:02]} 19. Be3 {[%emt 0:00:08]} Nxd5 {[%emt 0:00:07]} 20. Rfd1 {[%emt 0:00:04]} Nxe3 {[%emt 0:00:12]} 21. Rxd6 {[%emt 0:00:03]} Nc4 {[%emt 0:01:00]} 22. Rd7 {[%emt 0:00:01][%csl LRb7,LRf7]} Nxb2 {[%emt 0:00:09]} 23. Rxb7 {[%emt 0:00:09]} Nd3 {[%emt 0:00:06]} 24. Rxf7 {[%emt 0:00:36] [#]} Rc2 $146 {[%emt 0:00:07]} ({Predecessor:} 24... Nc1 25. h4 a5 26. a4 Rab8 27. Rf5 Rb7 28. h5 Kh7 29. Nh4 Rb4 30. Ng6 Rg4 {1-0 (44) Huebner,R (2580)-Prescha,F (2195) Cologne 1997}) 25. h3 {[%emt 0:00:32]} a5 {[%emt 0:00:06]} 26. a4 {[%emt 0:00:07]} Nc5 {[%emt 0:00:09]} (26... Rb8 $14) 27. Nd4 {[%emt 0:00:49]} ({Better is} 27. Re1 $16) 27... Rc4 $14 {[%emt 0:00:04][%csl LRa4,LRd4]} 28. Nf5 {[%emt 0:00:10]} Rxa4 {[%emt 0:00:08]} 29. Rc1 {[%emt 0:00:04]} Ne6 {[%emt 0:00:02]} 30. Rc6 {[%emt 0:00:08]} (30. Re7 $5 {[%cal Re7e6]} Rf4 31. Nxh6 $14) 30... Re4 {[%emt 0:00:10]} 31. Re7 {[%emt 0:00:06] Prevents a4.} Nd4 {[%emt 0:00:14] Strongly threatening ...Rxe7.} 32. Rc4 $2 {[%emt 0:00:11][%mdl 8192] [#]} (32. Nxg7 $2 {too greedy.} Rxe7 33. Rd6 a4 34. Rxd4 a3 $19) (32. Rxe4 $11 Nxc6 33. Rc4) 32... Nxf5 $2 {[%emt 0:00:14]} ({Black should play} 32... Nf3+ $1 $19 {[%mdl 512]} 33. gxf3 Rxc4) 33. Rexe4 $19 {[%emt 0:00:04][%mdl 4096] Endgame Black must now prevent Rc5. KRR-KRN} Nd6 $1 {[%emt 0:00:00][%csl LRc4,LRe4]} 34. Ra4 {[%emt 0:00:03]} Nxe4 {[%emt 0:00:01]} 35. Rxe4 $15 {[%emt 0:00:01] KR-KR} a4 36. Re2 {[%emt 0:00:01]} a3 {[%emt 0:00:03] And now ...a2 would win.} 37. Ra2 {[%emt 0:00:00]} g5 {[%emt 0:00:01]} (37... Kg8 $15) 38. Kf1 $11 {[%emt 0:00:02]} Kg7 {[%emt 0:00:02]} 39. Ke2 {[%emt 0:00:00]} Kf6 {[%emt 0:00:00]} 40. Kd3 {[%emt 0:00:01]} Ke5 {[%emt 0:00:02]} 41. Kc4 {[%emt 0:00:01]} Ke4 {[%emt 0:00:03]} 42. Re2+ {[%emt 0:00:02]} Kf4 {[%emt 0:00:00] aiming for ...a2.} 43. Ra2 {[%emt 0:00:01]} h5 {[%emt 0:00:05]} 44. Kb4 {[%emt 0:00:04]} Ke4 {[%emt 0:00:02] ...Kd3 is the strong threat.} 45. Rxa3 Rxa3 {[%emt 0:00:05]} 46. Kxa3 {[%emt 0:00:05] K3P-KPP} Kd3 {[%emt 0:00:00] ( -> ...Ke2)} (46... h4 $5 47. Kb4 $8 Kd3 $11) 47. Kb3 $2 {[%emt 0:00:07][%mdl 8192] [#]} (47. h4 $11 gxh4 48. Kb4) 47... Ke2 $2 {[%emt 0:00:02]} (47... h4 $1 {mates} 48. g4 Ke4 49. Kc2 Kf3 50. Kd2 Kxf2 51. Kd1 Kg3 52. Ke2 Kxh3 53. Kf3 Kh2 54. Kf2 h3 55. Kf1 Kg3 56. Kg1 Kxg4 57. Kh2 Kh4 58. Kh1 g4 59. Kh2 g3+ 60. Kh1 Kg4 61. Kg1 Kf3 62. Kh1 g2+ 63. Kg1 h2+ 64. Kxh2 Kf2 65. Kh3 g1=Q 66. Kh4 Qg6 67. Kh3 Qh5#) 48. g4 $2 {[%emt 0:00:04][%mdl 8192] This costs White the game.} (48. f3 h4 49. Kc4 Kf2 50. Kd5 Kxg2 51. Ke4 Kxh3 52. f4 gxf4 53. Kf3 Kh2 54. Kf2 h3 55. Kf3 Kg1 56. Kxf4 h2 57. Ke5 h1=Q 58. Kd6 Kf2 59. Kd7 Qd5+ 60. Ke7 Kg3 61. Kf6 Kf4 62. Kg6 Qb7 63. Kf6 Qd7 64. Kg6 Qe7 65. Kh6 Kf5 66. Kh5 Qh7#) (48. h4 $11 gxh4 49. f4) 48... hxg4 {[%emt 0:00:16] Black mates.} 49. hxg4 {[%emt 0:00:01]} Kxf2 {[%emt 0:00:01] KP-KP} 50. Kc3 {[%emt 0:00:00]} Kf3 {[%emt 0:00:01]} 51. Kd3 {[%emt 0:00:00]} Kxg4 {[%emt 0:00:01]} 52. Ke2 Kg3 {[%emt 0:00:02]} 53. Kf1 {[%emt 0:00:02]} Kh2 {[%emt 0:00:01]} 54. Kf2 {[%emt 0:00:01] [#]} g4 $1 {[%emt 0:00:01] Weighted Error Value: White=0.43/Black=0.42} 0-1

[Event "4th Tata Steel India Blitz Women 2022"]
[Site "Kolkota"]
[Date "2022.12.03"]
[Round "7.5"]
[White "Vaishali, Rameshbabu"]
[Black "Koneru, Humpy"]
[Result "1-0"]
[ECO "B13"]
[WhiteElo "2454"]
[BlackElo "2574"]
[Annotator "TA"]
[PlyCount "81"]
[EventDate "2022.11.29"]
[EventType "tourn"]
[EventCountry "IND"]
[SourceTitle "playchess.com"]
[Source "ChessBase"]
[SourceQuality "1"]
[TimeControl "180+2"]

{[%evp 22,81,33,29,42,45,43,49,41,33,40,42,50,38,57,44,63,54,50,59,79,79,81,69,75,63,67,67,57,57,57,58,60,58,58,58,58,58,79,58,58,0,92,96,97,93,182,172,171,180,166,101,188,0,148,152,220,110,608,585,1731,887]} 1. d4 {[%emt 0:00:03]} Nf6 {[%emt 0:00:02]} 2. Nf3 {[%emt 0:00:02]} d5 {[%emt 0:00:05]} 3. Bf4 {[%emt 0:00:01]} c5 {[%emt 0:00:05]} 4. e3 {[%emt 0:00:02]} Nc6 {[%emt 0:00:05]} 5. Nbd2 {[%emt 0:00:02]} Bg4 {[%emt 0:00:12]} 6. h3 {[%emt 0:00:05]} Bxf3 {[%emt 0:00:07]} 7. Nxf3 {[%emt 0:00:02]} e6 {[%emt 0:00:05]} 8. c3 {[%emt 0:00:13]} cxd4 {[%emt 0:00:26]} 9. exd4 {[%emt 0:00:03]} Bd6 {[%emt 0:00:01]} 10. Bxd6 {[%emt 0:00:26]} Qxd6 {[%emt 0:00:03]} 11. Bd3 {[%emt 0:00:02]} O-O {[%emt 0:00:13]} 12. O-O {[%emt 0:00:03] [#]} e5 $146 {[%emt 0:00:28] B13: Caro-Kann: Exchange Variation and Panov-Botvinnik Attack.} ({Predecessor:} 12... Rfe8 13. Re1 e5 14. dxe5 Nxe5 15. Nxe5 Rxe5 16. Rxe5 Qxe5 17. Qe1 Qxe1+ 18. Rxe1 Kf8 19. Kf1 Re8 20. Rxe8+ Kxe8 {½-½ (34) Tikkanen,H (2495)-Smith,A (2491) Ronneby 2018}) 13. dxe5 {[%emt 0:00:02]} Nxe5 {[%emt 0:00:02]} 14. Nxe5 {[%emt 0:00:28]} Qxe5 {[%emt 0:00:02] White is slightly better.} 15. Qb3 {[%emt 0:00:15]} Qc7 {[%emt 0:00:30]} 16. Be2 {[%emt 0:00:52]} Rad8 {[%emt 0:00:35]} 17. Rad1 {[%emt 0:00:02]} Rd6 {[%emt 0:00:07]} 18. Bf3 {[%emt 0:00:06][%cal Rf3d5]} Qb6 {[%emt 0:00:20]} 19. Rd4 {[%emt 0:00:28]} (19. Bxd5 Rxd5 20. Qxb6 axb6 $17) 19... Qxb3 {[%emt 0:00:02]} 20. axb3 {[%emt 0:00:01]} Rfd8 {[%emt 0:00:03]} 21. b4 {[%emt 0:00:04]} Kf8 {[%emt 0:00:03]} 22. Ra1 {[%emt 0:00:05]} a6 {[%emt 0:00:01]} 23. g3 {[%emt 0:00:02]} Ke7 {[%emt 0:00:03]} 24. Ra5 {[%emt 0:00:08] White is more active.} g5 {[%emt 0:00:03]} 25. h4 {[%emt 0:00:07]} h6 {[%emt 0:00:02]} 26. Kg2 {[%emt 0:00:01]} Ke6 {[%emt 0:00:03]} 27. Ra1 {[%emt 0:00:03]} Ke7 {[%emt 0:00:02]} 28. Re1+ {[%emt 0:00:01]} Re6 {[%emt 0:00:01]} 29. Red1 {[%emt 0:00:02]} Red6 {[%emt 0:00:01]} 30. Rh1 {[%emt 0:00:02]} Rb6 {[%emt 0:00:05]} 31. Ra1 {[%emt 0:00:06]} (31. Rb1 $14) 31... Rb5 {[%emt 0:00:03]} (31... Rbd6 $1 $11) 32. hxg5 $16 {[%emt 0:00:02]} hxg5 {[%emt 0:00:01]} 33. Re1+ {[%emt 0:00:02]} Kf8 {[%emt 0:00:02]} (33... Kd6 $16) 34. Re5 $18 {[%emt 0:00:01]} a5 {[%emt 0:00:02]} 35. bxa5 {[%emt 0:00:03] [#] Hoping for b4.} Rxb2 {[%emt 0:00:02]} 36. Rf5 {[%emt 0:00:03]} (36. Bxd5 g4 $16) (36. Rxg5 $18 {[%cal Og5f5]} Ra2 37. Bxd5 Rxa5 38. Bxb7 Rxd4 39. Rxa5) 36... Ke7 {[%emt 0:00:02]} (36... Rd6 $16 {keeps fighting.}) 37. Re5+ {[%emt 0:00:01]} (37. Bxd5 $6 Rxd5 38. Rfxd5 (38. Rdxd5 Nxd5 39. Rxd5 f6 $14) 38... Nxd5 39. Rxd5 f6 $14) 37... Kf8 {[%emt 0:00:02]} 38. Rxg5 {[%emt 0:00:01]} Rc8 {[%emt 0:00:03] [#]} (38... Rb5 $16 39. Ra4 Rc5) 39. Rf4 {[%emt 0:00:03]} ({Don't do} 39. Bxd5 $6 Nxd5 40. Rgxd5 (40. Rdxd5 Rxc3 41. Rgf5 Ke7 $16) 40... Rxc3 $16) (39. Rf5 $1 $18 {[%cal Rf5f6]} Kg7 40. Rdf4 (40. Bxd5 Rc5 $18)) 39... Nd7 {[%emt 0:00:03][%mdl 8192]} (39... Ne4 $16 40. Bxe4 (40. Rxd5 Nxf2 41. Rb4 Rc2 $16) 40... dxe4) 40. Bxd5 {[%emt 0:00:02]} f6 {[%emt 0:00:01]} 41. Rg8+ {[%emt 0:00:02] Weighted Error Value: White=0.21 (precise) /Black=0.46} 1-0

[Event "4th Tata Steel India Blitz Women 2022"]
[Site "Kolkota"]
[Date "2022.12.03"]
[Round "8.1"]
[White "Savitha Shri B"]
[Black "Ushenina, Anna"]
[Result "0-1"]
[ECO "B42"]
[WhiteElo "2411"]
[BlackElo "2454"]
[Annotator "TA"]
[PlyCount "130"]
[EventDate "2022.11.29"]
[EventType "tourn"]
[EventCountry "IND"]
[SourceTitle "playchess.com"]
[Source "ChessBase"]
[SourceQuality "1"]
[TimeControl "180+2"]

{[%evp 14,130,42,47,25,5,13,17,37,39,57,33,52,-54,-54,-55,-57,-104,-114,-112,-97,-136,-136,-207,-210,-194,-194,-218,-199,-209,-216,-299,-302,-383,-368,-411,-339,-347,-329,-466,-485,-466,-454,-590,-580,-593,-612,-855,-829,-854,-848,-883,-752,-775,-716,-1526,-1057,-1025,-1087,-927,-775,-749,-604,-691,-592,-565,-530,-814,-810,-911,-879,-786,-607,-672,-664,-793,-789,-1140,-1112,-1333,-1308,-29982,-6175,-6175,0,-29982,-6679,-5706,-1085,-1497,-869,-3510,-1497,-6287,-10066,-29977,-29976,-29975,-4560,-29975,-29964,-12789,-6095,-29983,0,-5514,-5459,-5197,-471,-485,-476,-591,-372,-5539,-5514,-29993,-29994,-29994,-29995]} 1. e4 {[%emt 0:00:01]} c5 {[%emt 0:00:01]} 2. Nf3 {[%emt 0:00:03]} e6 {[%emt 0:00:01]} 3. d4 {[%emt 0:00:01]} cxd4 {[%emt 0:00:01]} 4. Nxd4 {[%emt 0:00:01]} a6 {[%emt 0:00:01]} 5. Bd3 {[%emt 0:00:03]} Bc5 {[%emt 0:00:02]} 6. Nb3 {[%emt 0:00:01]} Ba7 {[%emt 0:00:01]} 7. Qg4 {[%emt 0:00:01]} Nf6 {[%emt 0:00:05]} 8. Qg3 {[%emt 0:00:03] e5 is the strong threat.} d6 {[%emt 0:00:09] B42: Sicilian: Kan Variation: 5 Bd3.} 9. c4 {[%emt 0:00:22]} (9. Qxg7 Bxf2+ $1 {[%mdl 512]} 10. Kd1 (10. Kxf2 Rg8 $17) 10... Rg8 $17) 9... Nc6 {[%emt 0:00:20]} 10. Nc3 {[%emt 0:00:09]} (10. Qxg7 $2 Rg8 11. Qh6 Bxf2+ $1 {[%mdl 512]} 12. Kf1 Ne5 $19) 10... Ne5 {[%emt 0:00:06] The position is equal.} 11. Be2 {[%emt 0:00:02]} O-O {[%emt 0:00:15] [#]} 12. Bf4 $146 {[%emt 0:00:02]} (12. O-O $5 {[%cal Rc4c5]}) ({Predecessor:} 12. Bh6 Ng6 13. Bg5 h6 14. Bd2 e5 15. h4 Kh8 16. Bg5 Rg8 17. Nd5 Nxe4 18. Qf3 Nxg5 19. hxg5 Qxg5 {0-1 (30) Miseta,N (1608)-Laszlo,D (1529) Balatonlelle 2012}) 12... Qc7 {[%emt 0:00:11]} 13. Bxe5 {[%emt 0:00:42]} (13. O-O $14) 13... dxe5 $15 {[%emt 0:00:02]} 14. O-O {[%emt 0:00:01]} Bd7 {[%emt 0:00:05]} 15. h4 {[%emt 0:00:07]} (15. Rac1 $15) 15... Bc6 $17 {[%emt 0:00:02]} 16. Bf3 {[%emt 0:00:02]} Rfd8 {[%emt 0:00:09]} 17. h5 {[%emt 0:00:02]} h6 {[%emt 0:00:02] Black is more active.} 18. Rfd1 {[%emt 0:00:01]} (18. Rac1 $17) 18... b5 $19 {[%emt 0:00:23]} 19. cxb5 {[%emt 0:00:13]} axb5 {[%emt 0:00:01][%cal Ba6b5,Bb5b4][%mdl 32]} 20. Rac1 {[%emt 0:00:29][%cal Oc3b5]} Rxd1+ {[%emt 0:00:03]} 21. Nxd1 {[%emt 0:00:08]} Qd6 {[%emt 0:00:14]} (21... Nxe4 $2 22. Bxe4 Qd6 23. Bxc6 $18 (23. Rxc6 Qxd1+ 24. Kh2 Qxh5+ 25. Qh3 Qg5 $16)) 22. Nc3 {[%emt 0:00:18]} b4 {[%emt 0:00:04]} 23. Rd1 {[%emt 0:00:01]} Qc7 {[%emt 0:00:06]} 24. Ne2 {[%emt 0:00:03]} Nxe4 {[%emt 0:00:20]} 25. Bxe4 {[%emt 0:00:04]} Bxe4 {[%emt 0:00:01]} 26. Qh4 {[%emt 0:00:11]} (26. Ned4 $142) 26... Qc2 {[%emt 0:00:23][%csl LRb2,LRd1,LRe2]} 27. Rd2 {[%emt 0:00:10]} Qb1+ {[%emt 0:00:01]} 28. Kh2 {[%emt 0:00:01]} Bd5 {[%emt 0:00:07]} (28... Qxa2 $2 29. Qxe4 Rc8 30. Qb7 $18 (30. Qxb4 Bxf2 31. Qb7 Qa8 $16)) 29. Nbc1 {[%emt 0:00:16]} e4 {[%emt 0:00:19] Threatens to win with ...e3.} ({And not} 29... Bxa2 30. Rd8+ Rxd8 31. Qxd8+ Kh7 32. Qa8 $15) 30. Kh1 {[%emt 0:00:17]} Rc8 {[%emt 0:00:01]} 31. Rd1 {[%emt 0:00:04]} Qxb2 {[%emt 0:00:06]} 32. Qe7 {[%emt 0:00:03]} Bb8 {[%emt 0:00:11] Hoping for ...e3.} 33. Qd7 {[%emt 0:00:02]} Rf8 {[%emt 0:00:03]} 34. Rf1 {[%emt 0:00:03]} Qe5 {[%emt 0:00:01][%csl Gb8][%cal Re5h2]} 35. Ng3 {[%emt 0:00:02]} Qg5 {[%emt 0:00:04]} 36. Nce2 {[%emt 0:00:02]} e3 {[%emt 0:00:03]} 37. f4 {[%emt 0:00:00]} Qh4+ {[%emt 0:00:02]} ({Don't play} 37... Bxa2 38. fxg5 hxg5 39. Qb5 $18) 38. Kg1 {[%emt 0:00:01]} Qg4 {[%emt 0:00:02]} 39. Qb5 {[%emt 0:00:01]} Bd6 {[%emt 0:00:06] And now ...Ra8 would win.} 40. Qb6 {[%emt 0:00:01]} Be7 {[%emt 0:00:02]} 41. Qxe3 {[%emt 0:00:02]} Rc8 {[%emt 0:00:01][%cal Oe7c5] Strongly threatening ...Bc5!} 42. Rc1 {[%emt 0:00:04] Prevents Bc5.} Rxc1+ {[%emt 0:00:02]} 43. Qxc1 {[%emt 0:00:00]} Bxa2 {[%emt 0:00:02] A strong pair of Bishops.} 44. Qc8+ Bf8 45. Qc2 {[%emt 0:00:06]} Bd5 {[%emt 0:00:02] aiming for ...b3.} 46. Qb2 {[%emt 0:00:04]} b3 {[%emt 0:00:01]} 47. Kh2 {[%emt 0:00:02]} Qh4+ {[%emt 0:00:02]} (47... Bc5 $142 48. Ng1 Bxg1+ 49. Kxg1 Qxg3 50. Kh1 Bxg2+ $1 {[%mdl 512]} 51. Qxg2 Qxg2+ 52. Kxg2 b2 53. Kf3 b1=Q 54. Ke2 Qc2+ 55. Kf3 f5 56. Ke3 Kf7 57. Kd4 Qb3 58. Kc5 Ke7 59. Kc6 Kd8 60. Kc5 Kc7 61. Kd4 Kc6 62. Ke5 Qe3#) 48. Kg1 Qg4 {[%emt 0:00:01]} (48... Bc5+ $19 49. Kf1 Bc4) 49. Kh2 $1 {[%emt 0:00:02]} Bd6 {[%emt 0:00:01]} (49... Bc5 $142 50. Ng1 Bxg1+ 51. Kxg1 Qxg3 52. Kh1 {[#]} Bxg2+ $1 {[%mdl 512]} 53. Qxg2 Qxg2+ 54. Kxg2 b2 55. Kf2 b1=Q 56. Ke2 Qc2+ 57. Kf3 Qd3+ 58. Kg2 Qe2+ 59. Kh3 f5 60. Kg3 g6 61. Kh3 gxh5 62. Kg3 h4+ 63. Kh3 h5 64. Kxh4 Qg4#) 50. Qd4 {[%emt 0:00:01]} Qh4+ {[%emt 0:00:02]} (50... Ba3 $142 51. Qe3 b2) 51. Kg1 {[%emt 0:00:01]} Qf6 {[%emt 0:00:01]} 52. Qb6 {[%emt 0:00:02]} Bf8 {[%emt 0:00:01]} (52... Qa1+ $142 53. Kh2 b2 54. Qxd6 b1=Q) 53. Kh2 {[%emt 0:00:04]} Qa1 {[%emt 0:00:03]} 54. f5 {[%emt 0:00:02]} Qe5 {[%emt 0:00:02]} 55. fxe6 {[%emt 0:00:02]} Qxe6 {[%emt 0:00:01]} (55... Bxe6 $142 56. Nc1 Bd6 57. Nce2 b2 58. Kh1 Ba2 59. Qd8+ Kh7 60. Qb6 b1=Q+ 61. Qg1 Qxg1+ 62. Kxg1 Qe3+ 63. Kh1 Bd5 64. Kh2 Qxe2 65. Kh3 Bxg2+ 66. Kh2 Bf1+ 67. Kh1 Qg2#) 56. Qb8 {[%emt 0:00:01]} Qd6 {[%emt 0:00:01]} 57. Qb5 {[%emt 0:00:02]} Qc5 {[%emt 0:00:02]} (57... Qb4 $142 58. Qxd5 b2) 58. Qb8 {[%emt 0:00:00]} Qd6 {[%emt 0:00:02]} (58... b2 $142 59. Nf5 Qb4 60. Qe5 Be6 61. Qe3 b1=Q 62. Nfd4 Bd6+ 63. Nf4 Qc5 64. g3 Bxf4 65. Qf3 Qxd4 66. Qa8+ Bb8 67. Qxb8+ Qxb8 68. Kh1 Qf2 69. g4 Qfh2#) 59. Qb5 {[%emt 0:00:01]} Qc6 {[%emt 0:00:02] Inhibits Nc3.} 60. Qb8 {[%emt 0:00:02]} Bxg2 {[%emt 0:00:03]} (60... Qf6 $142 {( -> ...Qh4+)} 61. Nf4 Qh4+ 62. Nh3 Qb4 63. Qxb4 Bxb4) 61. Qxb3 {[%emt 0:00:07]} Bd5 {[%emt 0:00:01]} ({Don't blunder} 61... Bd6 $2 62. Nd4 Qa8 63. Ndf5 $19) 62. Qe3 {[%emt 0:00:01]} Qe6 {[%emt 0:00:01]} 63. Qa7 {[%emt 0:00:03]} (63. Qxe6 Bxe6 64. Kg2) 63... Bd6 {[%emt 0:00:01]} 64. Qa6 {[%emt 0:00:03]} Bxg3+ {[%emt 0:00:02]} 65. Nxg3 Qxa6 {[%emt 0:00:00] Black took control after the opening.   Weighted Error Value: White=0.58/Black=0.38} 0-1